[Event "Ebbe Cup 48"]
[Site "Goteborgs Schackcentrum, Vegatan 20, Gothenburg, Sweden"]
[Date "2025.02.16"]
[Round "5.9"]
[White "Gallon, John"]
[Black "Hernebring, Marten"]
[Result "0-1"]
[TimeControl "90 minutes + 30 seconds per move from move one"]
[WhiteFideId "1783661"]
[BlackFideId "1776894"]
[WhiteElo "1651"]
[BlackElo "1663"]

1. e4 {[%clk 01:30:56]} {[%emt 00:00:03]} e5 {[%clk 01:30:55]} {[%emt
00:00:05]} 2. Nc3 {[%clk 01:31:17]} {[%emt 00:00:09]} Nf6 {[%clk 01:31:07]}
{[%emt 00:00:18]} 3. g3 {[%clk 01:31:40]} {[%emt 00:00:07]} Bc5 {[%clk
01:27:07]} {[%emt 00:04:31]} 4. Bg2 {[%clk 01:31:39]} {[%emt 00:00:30]} O-O
{[%clk 01:25:34]} {[%emt 00:02:03]} 5. Nge2 {[%clk 01:31:17]} {[%emt 00:00:52]}
Nc6 {[%clk 01:24:58]} {[%emt 00:01:06]} 6. O-O {[%clk 01:31:10]} {[%emt
00:00:37]} d6 {[%clk 01:24:16]} {[%emt 00:01:12]} 7. Na4 {[%clk 01:19:52]}
{[%emt 00:11:48]} Bg4 {[%clk 01:17:29]} {[%emt 00:07:17]} 8. Nxc5 {[%clk
01:16:24]} {[%emt 00:03:58]} Bxe2 {[%clk 01:17:49]} {[%emt 00:00:09]} 9. Qxe2
{[%clk 01:16:37]} {[%emt 00:00:17]} Nd4 {[%clk 01:18:09]} {[%emt 00:00:11]} 10.
Qd1 {[%clk 01:02:45]} {[%emt 00:14:21]} dxc5 {[%clk 01:18:30]} {[%emt
00:00:10]} 11. d3 {[%clk 01:02:27]} {[%emt 00:00:47]} Ne8 {[%clk 01:17:37]}
{[%emt 00:01:23]} 12. f4 {[%clk 00:57:37]} {[%emt 00:05:19]} exf4 {[%clk
01:14:29]} {[%emt 00:03:39]} 13. Bxf4 {[%clk 00:57:25]} {[%emt 00:00:42]} Kh8
{[%clk 01:14:21]} {[%emt 00:00:37]} 14. Qd2 {[%clk 00:54:57]} {[%emt 00:02:58]}
Ne6 {[%clk 01:06:22]} {[%emt 00:08:30]} 15. Be3 {[%clk 00:28:09]} {[%emt
00:27:17]} c6 {[%clk 01:06:32]} {[%emt 00:00:21]} 16. Bh3 {[%clk 00:26:28]}
{[%emt 00:02:10]} N8c7 {[%clk 01:06:56]} {[%emt 00:00:07]} 17. Rf2 {[%clk
00:25:09]} {[%emt 00:01:49]} Qe7 {[%clk 01:07:14]} {[%emt 00:00:13]} 18. Raf1
{[%clk 00:23:06]} {[%emt 00:02:32]} b6 {[%clk 01:06:33]} {[%emt 00:01:11]} 19.
a4 {[%clk 00:15:50]} {[%emt 00:07:46]} Rad8 {[%clk 01:06:40]} {[%emt 00:00:23]}
20. c3 {[%clk 00:15:35]} {[%emt 00:00:45]} h5 {[%clk 00:57:54]} {[%emt
00:09:16]} 21. Qc1 {[%clk 00:08:56]} {[%emt 00:07:09]} Rxd3 {[%clk 00:57:38]}
{[%emt 00:00:45]} 22. Rd1 {[%clk 00:08:37]} {[%emt 00:00:49]} Rfd8 {[%clk
00:56:11]} {[%emt 00:01:57]} 23. Rxd3 {[%clk 00:08:35]} {[%emt 00:00:30]} Rxd3
{[%clk 00:56:12]} {[%emt 00:00:31]} 24. Bf1 {[%clk 00:08:00]} {[%emt 00:01:05]}
Rd7 {[%clk 00:51:45]} {[%emt 00:04:56]} 25. Rd2 {[%clk 00:06:41]} {[%emt
00:01:50]} Nf8 {[%clk 00:47:38]} {[%emt 00:04:37]} 26. Bh3 {[%clk 00:06:34]}
{[%emt 00:00:37]} Rxd2 {[%clk 00:43:44]} {[%emt 00:04:24]} 27. Qxd2 {[%clk
00:06:49]} {[%emt 00:00:15]} Qxe4 {[%clk 00:41:24]} {[%emt 00:02:51]} 28. Kf2
{[%clk 00:00:33]} {[%emt 00:06:47]} Nd5 {[%clk 00:36:25]} {[%emt 00:05:28]} 29.
Bg2 {[%clk 00:00:32]} {[%emt 00:00:32]} Qxe3+ {[%clk 00:35:05]} {[%emt
00:01:49]} 30. Qxe3 {[%clk 00:00:48]} {[%emt 00:00:13]} Nxe3 {[%clk 00:35:28]}
{[%emt 00:00:07]} 31. Kxe3 {[%clk 00:01:13]} {[%emt 00:00:06]} Nd7 {[%clk
00:27:23]} {[%emt 00:08:35]} 32. Bxc6 {[%clk 00:00:39]} {[%emt 00:01:05]} Ne5
{[%clk 00:27:45]} {[%emt 00:00:07]} 33. Bf3 {[%clk 00:00:31]} {[%emt 00:00:38]}
Nxf3 {[%clk 00:27:39]} {[%emt 00:00:35]} 34. Kxf3 {[%clk 00:00:55]} {[%emt
00:00:07]} Kh7 {[%clk 00:28:02]} {[%emt 00:00:06]} 35. Kf4 {[%clk 00:00:31]}
{[%emt 00:00:54]} Kg6 {[%clk 00:25:50]} {[%emt 00:02:41]} 36. Ke4 {[%clk
00:00:36]} {[%emt 00:00:26]} Kg5 {[%clk 00:25:12]} {[%emt 00:01:08]} 37. Kd5
{[%clk 00:00:59]} {[%emt 00:00:07]} Kg4 {[%clk 00:25:35]} {[%emt 00:00:07]} 38.
Kc6 {[%clk 00:01:24]} {[%emt 00:00:05]} Kh3 {[%clk 00:25:59]} {[%emt 00:00:06]}
39. Kb7 {[%clk 00:01:50]} {[%emt 00:00:04]} Kxh2 {[%clk 00:26:21]} {[%emt
00:00:08]} 40. Kxa7 {[%clk 00:02:16]} {[%emt 00:00:04]} Kxg3 {[%clk 00:26:43]}
{[%emt 00:00:09]} 41. Kxb6 {[%clk 00:02:36]} {[%emt 00:00:10]} h4 {[%clk
00:27:03]} {[%emt 00:00:10]} 42. a5 {[%clk 00:03:01]} {[%emt 00:00:06]} h3
{[%clk 00:27:27]} {[%emt 00:00:05]} 43. a6 {[%clk 00:03:28]} {[%emt 00:00:03]}
h2 {[%clk 00:27:50]} {[%emt 00:00:06]} 44. a7 {[%clk 00:03:50]} {[%emt
00:00:09]} h1=Q {[%clk 00:28:12]} {[%emt 00:00:08]} 45. Kxc5 {[%clk 00:04:13]}
{[%emt 00:00:08]} Qb7 {[%clk 00:28:00]} {[%emt 00:00:41]} 46. a8=Q {[%clk
00:04:22]} {[%emt 00:00:21]} Qxa8 {[%clk 00:28:20]} {[%emt 00:00:11]} 47. b4
{[%clk 00:04:49]} {[%emt 00:00:04]} f5 {[%clk 00:27:47]} {[%emt 00:01:02]} 48.
b5 {[%clk 00:05:15]} {[%emt 00:00:05]} f4 {[%clk 00:27:55]} {[%emt 00:00:21]}
49. b6 {[%clk 00:05:43]} {[%emt 00:00:02]} Qa5+ {[%clk 00:27:28]} {[%emt
00:00:57]} 50. Kc6 {[%clk 00:06:07]} {[%emt 00:00:06]} Qxc3+ {[%clk 00:27:46]}
{[%emt 00:00:12]} 51. Kb7 {[%clk 00:06:35]} {[%emt 00:00:01]} Qb4 {[%clk
00:27:12]} {[%emt 00:01:04]} 52. Ka7 {[%clk 00:06:57]} {[%emt 00:00:09]} Qxb6+
{[%clk 00:27:36]} {[%emt 00:00:06]} 53. Kxb6 {[%clk 00:07:20]} {[%emt
00:00:07]} f3 {[%clk 00:27:52]} {[%emt 00:00:14]} 54. Kc5 {[%clk 00:07:49]}
{[%emt 00:00:02]} f2 {[%clk 00:28:12]} {[%emt 00:00:10]} 55. Kd4 {[%clk
00:08:13]} {[%emt 00:00:05]} Kf4 {[%clk 00:27:37]} {[%emt 00:01:06]} 56. Kc4
{[%clk 00:08:32]} {[%emt 00:00:10]} f1=Q+ {[%emt 00:00:37]} 57. Kb3 {[%clk
00:08:58]} Ke3 {[%clk 00:27:28]} {[%emt 00:00:35]} 58. Kc2 {[%clk 00:09:16]}
{[%emt 00:00:13]} Ke2 {[%clk 00:27:51]} {[%emt 00:00:07]} 59. Kb3 {[%clk
00:09:40]} {[%emt 00:00:06]} g5 {[%clk 00:28:15]} {[%emt 00:00:05]} 60. Kc2
{[%clk 00:10:04]} {[%emt 00:00:07]} g4 {[%clk 00:28:40]} {[%emt 00:00:05]} 61.
Kb3 {[%clk 00:10:32]} {[%emt 00:00:02]} g3 {[%clk 00:29:04]} {[%emt 00:00:06]}
62. Kc2 {[%clk 00:11:01]} {[%emt 00:00:01]} g2 {[%clk 00:29:21]} {[%emt
00:00:13]} 63. Kb3 {[%clk 00:11:25]} {[%emt 00:00:05]} g1=R {[%clk 00:29:42]}
{[%emt 00:00:10]} 64. Kc2 {[%clk 00:11:46]} {[%emt 00:00:09]} Qb1+ {[%clk
00:29:20]} {[%emt 00:00:52]} 65. Kc3 {[%clk 00:12:11]} {[%emt 00:00:06]} Rg3+
{[%clk 00:28:57]} {[%emt 00:00:53]} 66. Kc4 {[%clk 00:12:31]} {[%emt 00:00:10]}
Qe4+ {[%clk 00:29:14]} {[%emt 00:00:13]} 67. Kb5 {[%clk 00:12:53]} {[%emt
00:00:08]} Rg5+ {[%clk 00:29:30]} {[%emt 00:00:14]} 68. Ka6 {[%clk 00:13:06]}
{[%emt 00:00:17]} Qe6+ {[%clk 00:29:51]} {[%emt 00:00:08]} 69. Kb7 {[%clk
00:13:28]} {[%emt 00:00:09]} Rg7+ {[%clk 00:30:16]} {[%emt 00:00:05]} 70. Ka8
{[%clk 00:13:51]} {[%emt 00:00:07]} Qe8# {[%clk 00:30:38]} {[%emt 00:00:08]}
0-1

[ePGN "0.1;DGT LiveChess/2.2.6"]

[Event "Ebbe Cup 48"]
[Site "Goteborgs Schackcentrum, Vegatan 20, Gothenburg, Sweden"]
[Date "2025.02.16"]
[Round "5.10"]
[White "Sivarama, Saadhvik"]
[Black "Hassinge, Ove"]
[Result "0-1"]
[TimeControl "90 minutes + 30 seconds per move from move one"]
[WhiteFideId "1773720"]
[BlackFideId "1774530"]
[WhiteElo "1657"]
[BlackElo "1655"]

1. e4 {[%clk 01:30:54]} {[%emt 00:00:06]} c5 {[%clk 01:30:51]} {[%emt
00:00:09]} 2. Nf3 {[%clk 01:29:11]} {[%emt 00:02:13]} g6 {[%clk 01:31:11]}
{[%emt 00:00:10]} 3. d4 {[%clk 01:26:59]} {[%emt 00:02:42]} cxd4 {[%clk
01:31:24]} {[%emt 00:00:17]} 4. Qxd4 {[%clk 01:24:49]} {[%emt 00:02:40]} Nf6
{[%clk 01:31:28]} {[%emt 00:00:27]} 5. Bc4 {[%clk 01:20:28]} {[%emt 00:04:51]}
Nc6 {[%clk 01:29:56]} {[%emt 00:02:02]} 6. Qd3 {[%clk 01:17:01]} {[%emt
00:03:56]} Bg7 {[%clk 01:27:53]} {[%emt 00:02:33]} 7. Nc3 {[%clk 01:15:38]}
{[%emt 00:01:53]} O-O {[%clk 01:25:44]} {[%emt 00:02:30]} 8. O-O {[%clk
01:15:41]} {[%emt 00:00:36]} d6 {[%clk 01:25:07]} {[%emt 00:01:06]} 9. h3
{[%clk 01:12:39]} {[%emt 00:03:33]} Bd7 {[%clk 01:18:31]} {[%emt 00:07:07]} 10.
Be3 {[%clk 01:09:18]} {[%emt 00:03:50]} Na5 {[%clk 01:14:05]} {[%emt 00:04:58]}
11. Bb3 {[%clk 01:08:15]} {[%emt 00:01:33]} Nxb3 {[%clk 01:14:11]} {[%emt
00:00:23]} 12. axb3 {[%clk 01:08:30]} {[%emt 00:00:14]} a6 {[%clk 01:13:50]}
{[%emt 00:00:51]} 13. Rfd1 {[%clk 00:57:00]} {[%emt 00:11:59]} Bc6 {[%clk
01:12:24]} {[%emt 00:01:56]} 14. Nd4 {[%clk 00:48:44]} {[%emt 00:08:47]} Rc8
{[%clk 01:05:27]} {[%emt 00:07:27]} 15. Nxc6 {[%clk 00:44:36]} {[%emt
00:04:38]} Rxc6 {[%clk 01:05:29]} {[%emt 00:00:28]} 16. Bd4 {[%clk 00:35:15]}
{[%emt 00:09:51]} Qc8 {[%clk 01:00:07]} {[%emt 00:05:52]} 17. Rd2 {[%clk
00:25:51]} {[%emt 00:09:54]} Qe6 {[%clk 00:49:32]} {[%emt 00:11:04]} 18. Re1
{[%clk 00:17:35]} {[%emt 00:08:45]} Re8 {[%clk 00:45:31]} {[%emt 00:04:31]} 19.
Rde2 {[%clk 00:10:33]} {[%emt 00:07:32]} Qc8 {[%clk 00:43:05]} {[%emt
00:02:56]} 20. Nd5 {[%clk 00:07:52]} {[%emt 00:03:11]} Nxd5 {[%clk 00:41:08]}
{[%emt 00:02:27]} 21. exd5 {[%clk 00:07:49]} {[%emt 00:00:33]} Rc7 {[%clk
00:40:22]} {[%emt 00:01:17]} 22. Bxg7 {[%clk 00:07:43]} {[%emt 00:00:35]} Kxg7
{[%clk 00:40:26]} {[%emt 00:00:26]} 23. Qd4+ {[%clk 00:07:33]} {[%emt
00:00:40]} Kg8 {[%clk 00:40:23]} {[%emt 00:00:34]} 24. Qh4 {[%clk 00:07:16]}
{[%emt 00:00:46]} Qd7 {[%clk 00:38:54]} {[%emt 00:02:00]} 25. Qh6 {[%clk
00:06:09]} {[%emt 00:01:36]} Qf5 {[%clk 00:35:23]} {[%emt 00:04:02]} 26. c4
{[%clk 00:04:58]} {[%emt 00:01:41]} e5 {[%clk 00:32:57]} {[%emt 00:02:56]} 27.
dxe6 {[%clk 00:04:59]} {[%emt 00:00:29]} Rxe6 {[%clk 00:32:32]} {[%emt
00:00:54]} 28. Rxe6 {[%clk 00:05:05]} {[%emt 00:00:23]} fxe6 {[%clk 00:32:44]}
{[%emt 00:00:19]} 29. Re3 {[%clk 00:04:50]} {[%emt 00:00:45]} Rf7 {[%clk
00:30:31]} {[%emt 00:02:43]} 30. Rf3 {[%clk 00:04:34]} {[%emt 00:00:46]} Qb1+
{[%clk 00:30:42]} {[%emt 00:00:19]} 31. Kh2 {[%clk 00:04:42]} {[%emt 00:00:22]}
Rxf3 {[%clk 00:31:04]} {[%emt 00:00:08]} 32. gxf3 {[%clk 00:05:07]} {[%emt
00:00:05]} Qxb2 {[%clk 00:30:36]} {[%emt 00:00:58]} 33. Qe3 {[%clk 00:04:31]}
{[%emt 00:01:06]} Qe5+ {[%clk 00:30:11]} {[%emt 00:00:55]} 34. Qxe5 {[%clk
00:04:55]} {[%emt 00:00:05]} dxe5 {[%clk 00:30:32]} {[%emt 00:00:09]} 35. Kg3
{[%clk 00:04:57]} {[%emt 00:00:29]} Kg7 {[%clk 00:30:06]} {[%emt 00:00:56]} 36.
b4 {[%clk 00:04:57]} {[%emt 00:00:30]} Kf6 {[%clk 00:30:13]} {[%emt 00:00:23]}
37. h4 {[%clk 00:04:06]} {[%emt 00:01:20]} Kf5 {[%clk 00:30:11]} {[%emt
00:00:33]} 38. c5 {[%clk 00:03:43]} {[%emt 00:00:53]} h6 {[%clk 00:29:03]}
{[%emt 00:01:38]} 39. Kh3 {[%clk 00:03:10]} {[%emt 00:01:02]} Kf4 {[%clk
00:29:12]} {[%emt 00:00:22]} 40. Kg2 {[%clk 00:03:26]} {[%emt 00:00:14]} h5
{[%clk 00:28:50]} {[%emt 00:00:52]} 41. Kf1 {[%clk 00:01:54]} {[%emt 00:02:02]}
Kxf3 {[%clk 00:29:08]} {[%emt 00:00:12]} 42. Kg1 {[%clk 00:02:08]} {[%emt
00:00:14]} Kg4 {[%clk 00:29:03]} {[%emt 00:00:37]} 43. Kg2 {[%clk 00:01:58]}
{[%emt 00:00:40]} Kxh4 {[%clk 00:29:24]} {[%emt 00:00:10]} 44. Kh2 {[%clk
00:02:00]} {[%emt 00:00:28]} Kg4 {[%clk 00:29:34]} {[%emt 00:00:20]} 45. Kg2
{[%clk 00:02:19]} {[%emt 00:00:11]} Kf4 {[%clk 00:29:57]} {[%emt 00:00:07]} 46.
f3 {[%clk 00:02:17]} {[%emt 00:00:32]} e4 {[%clk 00:30:03]} {[%emt 00:00:24]}
0-1